bitfinex/quotes_SOLUSD_20250607
["timestamp","ask_amount","ask_price","bid_price","bid_amount"]
[1749317246059,11.73928709,151.29,151.26,2.46522022]
[1749317246260,11.73928709,151.29,151.25,15.38916215]
[1749317246662,11.73928709,151.29,151.26,2.46511225]
[1749317246862,11.73928709,151.29,151.25,10.26]
[1749317247779,11.73928709,151.29,151.25,16.87153703]
[1749317247979,11.73928709,151.29,151.26,2.46517008]
[1749317248182,11.73928709,151.29,151.25,16.87153703]
[1749317248487,11.73928709,151.29,151.26,2.46515326]
[1749317248667,11.73928709,151.29,151.25,16.87153703]
[1749317249364,11.73928709,151.29,151.26,2.46506112]
[1749317249565,11.73928709,151.29,151.25,16.87153703]
[1749317250161,11.73928709,151.29,151.26,2.4650164]
[1749317250385,11.73928709,151.29,151.25,10.26]
[1749317250589,11.73928709,151.29,151.26,2.46498045]
[1749317250889,11.73928709,151.29,151.25,10.26]
[1749317251070,11.73928709,151.29,151.26,2.46535923]
[1749317251264,11.73928709,151.29,151.25,10.26]
[1749317251469,11.73928709,151.29,151.26,2.4651572]
[1749317251665,11.73928709,151.29,151.25,10.26]
[1749317251861,11.73928709,151.29,151.26,2.4648489]
[1749317252066,11.73928709,151.29,151.25,5.12916215]
[1749317252571,11.73928709,151.29,151.26,2.46483434]
[1749317252771,11.73928709,151.29,151.25,5.12916215]
[1749317252970,11.73928709,151.29,151.26,2.46470288]
[1749317253275,11.73928709,151.29,151.25,5.12916215]
[1749317253477,5.12916215,151.29,151.26,2.46473812]
[1749317253793,5.12916215,151.29,151.25,11.74069008]
[1749317253973,5.12916215,151.29,151.26,2.46473924]
[1749317254176,5.12916215,151.29,151.25,11.74069008]
[1749317254380,5.12916215,151.29,151.26,2.4647756]
[1749317254585,11.73913148,151.29,151.25,5.12916215]
[1749317255089,11.73913148,151.29,151.26,2.46474759]
[1749317255295,11.73913148,151.29,151.25,5.12916215]
[1749317255470,11.73913148,151.29,151.26,2.46552346]
[1749317255768,11.73913148,151.29,151.25,5.12916215]
[1749317255992,30.38836847,151.3,151.26,2.46566233]
[1749317256193,5.12916215,151.3,151.26,11.74020999]
[1749317257871,5.12916215,151.31,151.26,11.74020999]
[1749317258070,25.2582866,151.32,151.27,2.46524916]
[1749317258285,5.12916215,151.31,151.28,2.46515911]
[1749317258483,5.12916215,151.31,151.26,11.74020999]
[1749317258671,23.77881101,151.32,151.27,7.59428939]
[1749317258870,18.64964886,151.32,151.28,7.59428939]
[1749317259083,11.73727132,151.33,151.29,2.46446629]
[1749317259281,11.73727132,151.33,151.28,5.12916215]
[1749317259477,11.73727132,151.33,151.29,2.46425929]
[1749317259678,11.73727132,151.33,151.28,5.12916215]
[1749317260085,11.73727132,151.33,151.28,11.73939027]
[1749317260293,11.73727132,151.33,151.29,2.4640952]
[1749317260575,11.73727132,151.33,151.28,11.73939027]
[1749317260779,11.73727132,151.33,151.29,2.46412343]
[1749317260982,11.73727132,151.33,151.28,11.73939027]
[1749317261480,11.73727132,151.33,151.29,2.46378909]
[1749317261684,11.73727132,151.33,151.28,11.73939027]
[1749317261878,11.73727132,151.33,151.29,2.46378909]
[1749317262090,11.73727132,151.33,151.28,11.73939027]
[1749317262690,11.73727132,151.33,151.29,2.46378909]
[1749317262894,11.73727132,151.33,151.28,21.99939027]
[1749317264086,11.73727132,151.33,151.29,2.46352017]
[1749317264284,11.73727132,151.33,151.28,21.99939027]
[1749317264877,11.73727132,151.33,151.29,5.12916215]
[1749317266181,25.257416,151.34,151.3,5.12916215]
[1749317266380,30.38657815,151.34,151.3,5.12916215]
[1749317266580,30.38657815,151.34,151.29,11.73884362]
[1749317266896,30.38657815,151.34,151.3,2.46225101]
[1749317267087,30.38657815,151.34,151.29,11.73884362]
[1749317267792,5.12916215,151.33,151.29,5.12916215]
[1749317268484,5.12916215,151.33,151.28,15.38916215]
[1749317268682,5.12916215,151.33,151.29,2.45825825]
[1749317268888,5.12916215,151.33,151.28,15.38916215]
[1749317269082,11.73760749,151.33,151.29,2.45825892]
[1749317269296,11.73760749,151.33,151.28,15.38916215]
[1749317269601,5.12916215,151.32,151.28,15.38916215]
[1749317270590,11.73780674,151.32,151.28,10.26]
[1749317270914,11.73780674,151.32,151.28,15.38916215]
[1749317272885,11.73780674,151.32,151.28,10.26]
[1749317277287,5.12916215,151.31,151.28,10.26]
[1749317277904,5.12916215,151.3,151.28,10.26]
[1749317279293,5.12916215,151.31,151.28,10.26]
[1749317280098,5.12916215,151.32,151.28,15.38916215]
[1749317280695,5.12916215,151.32,151.28,10.26]
[1749317281808,6.60894851,151.31,151.28,10.26]
[1749317291015,11.73811066,151.31,151.28,10.26]
[1749317296358,11.73811066,151.31,151.27,15.36916215]
[1749317297028,11.73811066,151.31,151.28,2.46233832]
[1749317297233,11.73811066,151.31,151.27,15.36916215]
[1749317298310,11.73811066,151.31,151.28,2.46497909]
[1749317298510,11.73811066,151.31,151.27,15.36916215]
[1749317299117,11.73811066,151.31,151.28,2.46493471]
[1749317299422,11.73811066,151.31,151.27,15.36916215]
[1749317300016,11.73811066,151.31,151.28,2.46463727]
[1749317300209,11.73811066,151.31,151.27,15.36916215]
[1749317300408,11.73811066,151.31,151.28,2.46449011]
[1749317300624,11.73811066,151.31,151.27,15.36916215]
[1749317301223,11.73811066,151.31,151.28,2.46458163]
[1749317301411,11.73811066,151.31,151.27,15.36916215]
[1749317301616,11.73811066,151.31,151.28,2.46457339]
[1749317301809,11.73811066,151.31,151.29,2.46457262]
[1749317302022,11.73811066,151.31,151.27,15.36916215]
[1749317302425,11.73811066,151.31,151.28,2.46448803]
[1749317302623,11.73811066,151.31,151.29,2.46448695]
[1749317302825,11.73811066,151.31,151.27,15.36916215]
[1749317303034,11.73811066,151.31,151.28,2.46448759]
[1749317303238,11.73811066,151.31,151.27,15.36916215]
[1749317303414,11.73811066,151.31,151.28,2.46450232]
[1749317303614,11.73811066,151.31,151.27,15.36916215]
[1749317303813,11.73811066,151.31,151.27,10.24]
[1749317304134,11.73811066,151.31,151.28,2.46423609]
[1749317304427,11.73811066,151.31,151.27,10.24]
[1749317304734,11.73811066,151.31,151.28,2.46422075]
[1749317304926,11.73811066,151.31,151.27,10.24]
[1749317305325,11.73811066,151.31,151.28,2.46430577]
[1749317305630,5.12916215,151.3,151.27,10.24]
[1749317307115,6.60982219,151.29,151.27,10.24]
[1749317307431,11.73870852,151.3,151.27,10.24]
[1749317311034,5.12916215,151.3,151.27,10.24]
[1749317312517,11.73854948,151.3,151.28,2.46512672]
[1749317312717,11.73854948,151.3,151.27,10.24]
[1749317313325,11.73854948,151.3,151.28,2.46492824]
[1749317313639,11.73854948,151.3,151.27,10.24]
[1749317314119,5.12916215,151.29,151.27,10.24]
[1749317314440,11.73854948,151.3,151.27,10.24]
[1749317315527,11.73854948,151.3,151.25,15.36916215]
[1749317316140,11.73854948,151.3,151.26,2.46592485]
[1749317316348,11.73854948,151.3,151.25,15.36916215]
[1749317316636,11.73854948,151.3,151.26,2.46590519]
[1749317316836,11.73854948,151.3,151.25,15.36916215]
[1749317317243,5.12916215,151.29,151.25,15.36916215]
[1749317317930,5.12916215,151.29,151.25,10.24]
[1749317318624,11.73913975,151.29,151.25,10.24]
[1749317318825,5.12916215,151.3,151.25,21.98070616]
[1749317320243,5.12916215,151.3,151.26,10.24]
[1749317322858,5.12916215,151.3,151.27,2.46151579]
[1749317323037,5.12916215,151.3,151.26,10.24]
[1749317323354,5.12916215,151.3,151.26,15.36916215]
[1749317324929,30.38810388,151.31,151.26,15.36916215]
[1749317329765,5.12916215,151.3,151.26,10.24]
[1749317331057,6.60982219,151.29,151.26,10.24]
[1749317331428,6.60982219,151.29,151.27,2.46522703]
[1749317331638,6.60982219,151.29,151.26,10.24]
[1749317331951,11.73898434,151.29,151.27,2.46502703]
[1749317332151,11.73898434,151.29,151.26,10.24]
[1749317332353,11.73898434,151.29,151.27,2.46500796]
[1749317332540,11.73898434,151.29,151.26,10.24]
[1749317332741,11.73898434,151.29,151.27,2.46499502]
[1749317332945,11.73898434,151.29,151.26,10.24]
[1749317333144,11.73898434,151.29,151.27,2.46531926]
[1749317333343,11.73898434,151.29,151.26,10.24]
[1749317333545,11.73898434,151.29,151.27,2.46586139]
[1749317333748,11.73898434,151.29,151.26,10.24]
[1749317333954,11.73898434,151.29,151.27,2.46586021]
[1749317334256,11.73898434,151.29,151.26,10.24]
[1749317334448,11.73898434,151.29,151.27,2.46598698]
[1749317334753,11.73898434,151.29,151.25,5.12916215]
[1749317334941,11.73898434,151.29,151.26,2.46594353]
[1749317335142,11.73898434,151.29,151.25,5.12916215]
[1749317335448,11.73898434,151.29,151.26,2.46594242]
[1749317335632,11.73898434,151.29,151.27,2.46594242]
[1749317335830,11.73898434,151.29,151.25,5.12916215]
[1749317336031,11.73898434,151.29,151.26,2.46611263]
[1749317336362,11.73898434,151.29,151.27,2.46615662]
[1749317336647,6.60982219,151.29,151.25,11.7407243]
[1749317337039,6.60982219,151.29,151.26,2.46598816]
[1749317337234,6.60982219,151.29,151.25,11.7407243]
[1749317337435,6.60982219,151.29,151.27,2.46598752]
[1749317345532,11.73898434,151.29,151.27,2.46598752]
[1749317347045,5.12916215,151.28,151.27,2.46598752]
[1749317347243,23.77881101,151.28,151.27,2.46598752]
[1749317348148,30.38907013,151.28,151.27,2.46598752]
[1749317350263,5.12916215,151.28,151.27,2.46598752]
[1749317352641,5.12916215,151.3,151.27,2.46598752]
[1749317352846,18.64964886,151.31,151.27,2.46598752]
[1749317353259,5.12916215,151.3,151.27,2.46598752]
[1749317354145,5.12916215,151.3,151.27,9.07659434]
[1749317354345,5.12916215,151.31,151.27,9.07659434]
[1749317355365,11.73827573,151.31,151.27,2.46598752]
[1749317360269,6.60869132,151.32,151.27,9.07637328]
[1749317360571,5.12916215,151.32,151.27,14.20553543]
[1749317362758,11.737819,151.32,151.27,14.20553543]
[1749317363279,5.12916215,151.31,151.27,7.59514967]
[1749317363977,5.12916215,151.29,151.27,2.46598752]
[1749317366674,5.12916215,151.3,151.27,2.46598752]
[1749317367065,18.64964886,151.31,151.27,2.46598752]
[1749317367273,5.12916215,151.3,151.27,2.46598752]
[1749317367574,23.77881101,151.31,151.27,7.59514967]
[1749317368455,5.12916215,151.3,151.27,2.46598752]
[1749317373190,18.64964886,151.34,151.29,5.12916215]
[1749317373360,5.12916215,151.33,151.29,5.12916215]
[1749317374287,18.64964886,151.34,151.29,11.73896877]
[1749317374288,30.38644944,151.34,151.29,11.73896877]
[1749317376175,25.25728729,151.34,151.3,5.12916215]
[1749317377091,30.38644944,151.34,151.28,6.61025912]
[1749317377264,5.12916215,151.33,151.28,5.12916215]
[1749317378082,30.38644944,151.34,151.28,5.12916215]
[1749317378387,30.38644944,151.34,151.29,5.12916215]
[1749317382368,30.38644944,151.34,151.28,11.7392565]
[1749317382783,5.12916215,151.33,151.28,11.7392565]
[1749317383281,11.73728527,151.33,151.28,11.7392565]
[1749317387985,11.73728527,151.33,151.28,5.12916215]
[1749317388287,11.73728527,151.33,151.27,14.20573329]
[1749317388469,6.60812312,151.33,151.28,5.12916215]
[1749317388671,30.38662189,151.34,151.28,5.12916215]
[1749317389593,30.38662189,151.34,151.28,11.73924201]
[1749317393397,30.38662189,151.34,151.29,2.46405988]
[1749317393588,30.38662189,151.34,151.28,11.73924201]
[1749317393909,11.73728884,151.33,151.29,2.46405939]
[1749317394099,11.73728884,151.33,151.28,11.73924201]
[1749317394391,11.73728884,151.33,151.29,2.46410509]
[1749317394600,11.73728884,151.33,151.28,11.73924201]
[1749317394771,11.73728884,151.33,151.29,2.4641495]
[1749317394972,11.73728884,151.33,151.28,11.73924201]
[1749317395172,11.73728884,151.33,151.29,2.46414965]
[1749317395393,11.73728884,151.33,151.28,11.73924201]
[1749317395587,11.73728884,151.33,151.29,2.46410509]
[1749317395884,11.73728884,151.33,151.28,11.73924201]
[1749317396093,11.73728884,151.33,151.29,2.46411136]
[1749317396291,11.73728884,151.33,151.28,11.73924201]
[1749317396488,11.73728884,151.33,151.29,2.46420048]
[1749317396690,11.73728884,151.33,151.28,11.73924201]
[1749317396909,11.73728884,151.33,151.29,2.46417181]
[1749317397211,11.73728884,151.33,151.28,11.73924201]
[1749317397383,11.73728884,151.33,151.29,2.46417181]
[1749317397580,11.73728884,151.33,151.28,11.73924201]
[1749317397897,11.73728884,151.33,151.29,2.46419409]
[1749317398196,11.73728884,151.33,151.28,11.73924201]
[1749317398889,11.73728884,151.33,151.29,2.46415696]
[1749317399090,11.73728884,151.33,151.28,11.73924201]
[1749317399282,11.73728884,151.33,151.29,2.464159]
[1749317399483,11.73728884,151.33,151.28,11.73924201]
[1749317399873,11.73728884,151.33,151.29,2.46419992]
[1749317400073,11.73728884,151.33,151.28,11.73924201]
[1749317400308,18.64964886,151.32,151.29,2.46420048]
[1749317400479,5.12916215,151.31,151.27,2.46598752]
[1749317400679,5.12916215,151.31,151.28,2.46450376]
[1749317401018,5.12916215,151.31,151.29,2.46614694]
[1749317401188,5.12916215,151.31,151.27,2.46598752]
[1749317401379,5.12916215,151.31,151.28,2.46614741]
[1749317401699,6.60917913,151.31,151.27,7.59514967]
[1749317401890,6.60917913,151.31,151.28,2.46621954]
[1749317402086,6.60917913,151.31,151.27,14.20583746]
[1749317402276,6.60917913,151.31,151.28,2.4661585]
[1749317402478,6.60917913,151.31,151.29,2.4661585]
[1749317402679,6.60917913,151.31,151.27,14.20583746]
[1749317402873,6.60917913,151.31,151.28,2.46645135]
[1749317403078,6.60917913,151.31,151.29,2.46674147]
[1749317403288,6.60917913,151.31,151.27,7.59514967]
[1749317403899,6.60917913,151.31,151.28,2.4668795]
[1749317404084,6.60917913,151.31,151.29,2.4668795]
[1749317404286,6.60917913,151.31,151.27,7.59514967]
[1749317404798,6.60917913,151.31,151.28,2.46490848]
[1749317405000,6.60917913,151.31,151.27,7.59514967]
[1749317405688,6.60917913,151.31,151.28,2.46400922]
[1749317405998,6.60917913,151.31,151.27,7.59514967]
[1749317406183,6.60917913,151.31,151.28,2.4639795]
[1749317406372,6.60917913,151.31,151.27,7.59514967]
[1749317406578,6.60917913,151.31,151.28,2.46450836]
[1749317406772,6.60917913,151.31,151.27,7.59514967]
[1749317406984,6.60917913,151.31,151.28,2.46432813]
[1749317407277,6.60917913,151.31,151.29,2.46423931]
[1749317407478,6.60917913,151.31,151.27,7.59514967]
[1749317407801,6.60917913,151.31,151.28,2.46441694]
[1749317408100,6.60917913,151.31,151.29,2.46453055]
[1749317408301,6.60917913,151.31,151.27,7.59514967]
[1749317408602,6.60917913,151.31,151.28,2.46446424]
[1749317408795,11.73834128,151.31,151.29,2.46446424]
[1749317409001,11.73834128,151.31,151.27,7.59514967]
[1749317409196,11.73834128,151.31,151.28,2.46441678]
[1749317409395,6.60917913,151.31,151.27,7.59514967]
[1749317409798,6.60917913,151.31,151.28,2.4643334]
[1749317409997,6.60917913,151.31,151.29,2.4643334]
[1749317410190,6.60917913,151.31,151.27,7.59514967]
[1749317410390,6.60917913,151.31,151.28,2.46423634]
[1749317410702,6.60917913,151.31,151.29,2.46423634]
[1749317410878,6.60917913,151.31,151.27,7.59514967]
[1749317411080,6.60917913,151.31,151.28,2.46414209]
[1749317411280,11.73834128,151.31,151.27,7.59514967]
[1749317411579,11.73834128,151.31,151.27,2.46598752]
[1749317411995,11.73834128,151.31,151.28,2.46462832]
[1749317412285,11.73834128,151.31,151.27,7.59514967]
[1749317412684,11.73834128,151.31,151.28,2.46469797]
[1749317412985,11.73834128,151.31,151.27,7.59514967]
[1749317413180,11.73834128,151.31,151.28,2.46463438]
[1749317413416,11.73834128,151.31,151.27,7.59514967]
[1749317413596,11.73834128,151.31,151.28,2.46465574]
[1749317413789,11.73834128,151.31,151.27,7.59514967]
[1749317414610,11.73834128,151.31,151.28,2.46347269]
[1749317414915,11.73834128,151.31,151.27,7.59514967]
[1749317415289,11.73834128,151.31,151.28,2.4636027]
[1749317415495,11.73834128,151.31,151.27,7.59514967]
[1749317416390,11.73834128,151.31,151.28,2.46267084]
[1749317416588,11.73834128,151.31,151.27,7.59514967]
[1749317416887,11.73834128,151.31,151.28,2.4625066]
[1749317417090,11.73834128,151.31,151.27,7.59514967]
[1749317417308,11.73834128,151.31,151.28,2.46224263]
[1749317417488,11.73834128,151.31,151.27,7.59514967]
[1749317418281,11.73834128,151.31,151.28,2.46133592]
[1749317418482,11.73834128,151.31,151.27,7.59514967]
[1749317420511,6.61025912,151.28,151.27,2.46598752]
[1749317420809,11.73918188,151.29,151.27,2.46598752]
[1749317420988,6.60957076,151.3,151.27,2.46598752]
[1749317421190,18.64964886,151.34,151.28,5.12916215]
[1749317421395,5.12916215,151.33,151.28,5.12916215]
[1749317421707,30.38644944,151.34,151.29,5.12916215]
[1749317421912,25.25728729,151.34,151.3,5.12916215]
[1749317422107,30.38644944,151.34,151.3,5.12916215]
[1749317422490,23.77881101,151.34,151.3,11.73842359]
[1749317422686,5.12916215,151.35,151.31,5.12916215]
[1749317423117,17.91376113,151.37,151.32,5.12916215]
[1749317423302,5.12916215,151.38,151.34,5.12916215]
[1749317423618,11.73436018,151.4,151.35,5.12916215]
[1749317423787,47.86923387,151.42,151.37,5.12916215]
[1749317423788,7.82923387,151.42,151.37,5.12916215]
[1749317424112,5.12916215,151.42,151.38,5.12916215]
[1749317424289,37.17971242,151.45,151.39,5.12916215]
[1749317424290,5.12916215,151.44,151.39,5.12916215]
[1749317424486,11.73273522,151.44,151.39,5.12916215]
[1749317425086,5.12916215,151.4,151.36,10.22]
[1749317425391,5.12916215,151.38,151.36,10.22]
[1749317426708,6.60632886,151.37,151.36,10.22]
[1749317427914,14.61169601,151.37,151.33,8.00536715]
[1749317428095,8.00536715,151.35,151.32,10.22]
[1749317428295,8.00536715,151.34,151.32,10.22]
[1749317428498,8.00536715,151.35,151.32,10.22]
[1749317428936,14.61272178,151.35,151.32,10.22]
[1749317429295,8.00536715,151.35,151.32,10.22]
[1749317429516,14.61221641,151.36,151.32,18.22536715]
[1749317430502,8.00536715,151.36,151.32,18.22536715]
[1749317431020,14.61214955,151.36,151.32,18.22536715]
[1749317431207,8.00536715,151.35,151.32,10.22]
[1749317435643,14.61260013,151.35,151.32,10.22]
[1749317436038,8.00536715,151.34,151.32,10.22]
[1749317437818,14.61316473,151.34,151.32,10.22]
[1749317438832,8.00536715,151.34,151.32,10.22]
[1749317439336,14.61307273,151.34,151.32,10.22]
[1749317440051,8.00536715,151.34,151.32,10.22]
[1749317444336,8.00536715,151.33,151.32,10.22]
[1749317445329,14.61307407,151.34,151.32,10.22]
[1749317446535,8.00536715,151.33,151.32,10.22]
[1749317447238,5.12643764,151.33,151.32,10.22]
[1749317448037,11.7345127,151.33,151.32,10.22]
[1749317448555,5.12643764,151.33,151.29,13.23313841]
[1749317449052,5.12643764,151.32,151.29,13.23313841]
[1749317453861,5.12643764,151.32,151.29,6.6234]
[1749317454655,11.7349907,151.32,151.28,41.34643764]
[1749317456560,11.7349907,151.32,151.28,47.9566783]
[1749317456766,5.12643764,151.32,151.28,47.9566783]
[1749317460861,5.12643764,151.33,151.28,47.9566783]
[1749317462362,11.73463192,151.33,151.28,47.9566783]
[1749317462559,5.12643764,151.31,151.28,10.22]
[1749317462762,5.12643764,151.29,151.28,10.22]
[1749317465365,5.12643764,151.31,151.28,10.22]
[1749317465564,5.12643764,151.32,151.28,21.95662346]
[1749317465869,5.12643764,151.31,151.28,16.83018582]
[1749317466561,5.12643764,151.32,151.28,21.95662346]
[1749317467239,5.12643764,151.33,151.28,21.95662346]
[1749317468259,5.12643764,151.32,151.28,21.95662346]
[1749317468443,5.12643764,151.32,151.28,10.22]
[1749317469044,18.64964886,151.34,151.28,10.22]
[1749317469045,5.12643764,151.31,151.28,10.22]
[1749317469454,5.12643764,151.3,151.28,10.22]
[1749317469658,5.12643764,151.29,151.28,10.22]
[1749317473368,5.12643764,151.3,151.28,10.22]
[1749317477357,5.12643764,151.29,151.28,10.22]
[1749317480377,11.73625983,151.29,151.28,10.22]
[1749317480574,11.73625983,151.29,151.24,10.22]
[1749317480776,5.12643764,151.27,151.24,10.22]
[1749317483183,5.12643764,151.27,151.24,16.83196513]
[1749317483382,5.12643764,151.28,151.24,16.83196513]
[1749317485367,5.12643764,151.27,151.24,10.22]
[1749317487593,11.73715827,151.27,151.24,10.22]
[1749317487889,5.12643764,151.25,151.24,10.22]
[1749317488719,5.12643764,151.25,151.2,124.92]
[1749317488990,18.64964886,151.26,151.2,10.22]
[1749317488991,5.12643764,151.21,151.2,10.22]
[1749317489382,5.12643764,151.21,151.16,110.66176691]
[1749317489679,18.64964886,151.23,151.16,110.66176691]
[1749317489680,5.12643764,151.2,151.17,2.45850133]
[1749317489884,5.12643764,151.2,151.16,21.96176691]
[1749317490090,5.12643764,151.2,151.16,16.83532927]
[1749317490397,5.12643764,151.2,151.16,21.96176691]
[1749317490578,5.12643764,151.21,151.16,21.96176691]
[1749317491191,5.12643764,151.21,151.16,24.858322]
[1749317491192,8.02299273,151.21,151.16,24.858322]
[1749317491534,8.02299273,151.2,151.17,2.45897934]
[1749317491789,8.02299273,151.2,151.17,9.07387792]
[1749317492395,8.02299273,151.21,151.17,6.61489858]
[1749317493889,8.02299273,151.2,151.16,24.85833978]
[1749317496101,8.02299273,151.19,151.16,10.22]
[1749317496976,8.02299273,151.19,151.16,16.83541519]
[1749317497197,8.02299273,151.19,151.16,10.22]
[1749317498604,8.02299273,151.18,151.16,10.22]
[1749317499102,8.02299273,151.17,151.16,10.22]
[1749317499425,8.02299273,151.17,151.12,24.8600856]
[1749317499582,55.75408662,151.22,151.12,24.8600856]
[1749317499583,8.02299273,151.16,151.12,24.8600856]
[1749317499786,55.75408662,151.22,151.12,24.8600856]
[1749317499787,8.02299273,151.17,151.12,24.8600856]
[1749317500198,8.02299273,151.17,151.13,8.02299273]
[1749317500482,8.02299273,151.17,151.13,14.63941988]
[1749317502299,18.64964886,151.21,151.14,8.02299273]
[1749317502500,8.02299273,151.18,151.14,8.02299273]
[1749317503387,8.02299273,151.18,151.15,6.61594442]
[1749317503798,8.02299273,151.18,151.14,14.63920421]
[1749317504596,8.02299273,151.18,151.14,6.61621148]
[1749317505709,8.02299273,151.18,151.14,14.63920421]
[1749317506395,8.02299273,151.19,151.14,14.63920421]
[1749317507512,8.02299273,151.2,151.16,8.02299273]
[1749317508188,8.02299273,151.21,151.16,8.02299273]
[1749317509015,8.02299273,151.21,151.17,8.02299273]
[1749317509390,8.02299273,151.22,151.17,8.02299273]
[1749317509708,8.02299273,151.22,151.18,6.61463156]
[1749317510306,8.02299273,151.22,151.18,14.63762429]
[1749317510512,25.26209657,151.23,151.18,14.63762429]
[1749317510717,8.02299273,151.22,151.18,8.02299273]
[1749317510920,25.26209657,151.23,151.17,24.85804699]
[1749317510921,8.02299273,151.21,151.17,24.85804699]
[1749317515808,8.02299273,151.22,151.17,24.85804699]
[1749317519029,8.02299273,151.22,151.18,8.02299273]
[1749317519525,8.02299273,151.22,151.18,14.63753329]
[1749317520613,14.63591779,151.22,151.18,8.02299273]
[1749317520813,14.63591779,151.22,151.17,24.8578704]
[1749317525528,8.02299273,151.22,151.18,8.02299273]
[1749317527424,8.02299273,151.22,151.18,14.63758706]
[1749317528626,8.02299273,151.23,151.19,8.02299273]
[1749317529443,5.13328039,151.22,151.18,11.74787472]
[1749317529610,6.61278812,151.23,151.18,11.74787472]
[1749317529816,11.74606851,151.23,151.18,11.74787472]
[1749317531441,5.13328039,151.23,151.19,11.74746741]
[1749317531641,23.78292925,151.27,151.22,5.13328039]
[1749317531841,23.78292925,151.27,151.23,5.13328039]
[1749317532057,5.13328039,151.26,151.21,5.13328039]
[1749317532418,5.13328039,151.24,151.2,40.04]
[1749317532623,5.13328039,151.24,151.19,93.83328039]
[1749317533041,5.13328039,151.24,151.19,100.44735783]
[1749317533241,5.13328039,151.24,151.2,5.13328039]
[1749317533928,5.13328039,151.24,151.2,11.74692017]
[1749317534128,5.13328039,151.26,151.21,5.13328039]
[1749317534324,5.13328039,151.26,151.22,5.13328039]
[1749317534519,23.78292925,151.27,151.22,5.13328039]
[1749317535532,23.78292925,151.27,151.22,11.74577108]
[1749317537347,8.01688139,151.26,151.22,8.01688139]
[1749317538141,8.01688139,151.26,151.22,14.62969427]
[1749317542446,9.53838139,151.28,151.23,8.01688139]
[1749317543640,8.01688139,151.27,151.23,8.01688139]
[1749317544157,8.01688139,151.27,151.24,6.6120074]
[1749317552251,8.01688139,151.27,151.23,14.62894406]
[1749317555279,8.01688139,151.3,151.25,8.01688139]
[1749317555464,8.01688139,151.3,151.26,8.01688139]
[1749317555780,6.6073669,151.35,151.29,8.01688139]
[1749317556080,6.6073669,151.35,151.3,8.01688139]
[1749317556081,8.01688139,151.34,151.3,8.01688139]
[1749317556258,26.0,151.36,151.31,8.01688139]
[1749317556259,32.60691247,151.36,151.31,8.01688139]
[1749317556469,8.01688139,151.35,151.31,8.01688139]
[1749317556667,26.66653025,151.35,151.31,8.01688139]
[1749317557364,33.27391839,151.35,151.3,14.62626026]
[1749317559189,30.38240594,151.35,151.3,11.73474781]
[1749317560571,32.60685765,151.36,151.31,5.12536894]
[1749317560776,11.73222659,151.36,151.32,5.12536894]
[1749317561196,11.73217328,151.36,151.32,5.12536894]
[1749317561374,5.12536894,151.34,151.29,46.6296465]
[1749317561571,5.12536894,151.33,151.29,40.02]
[1749317561771,5.12536894,151.33,151.28,11.73547986]
[1749317562578,5.12536894,151.33,151.29,5.12536894]
[1749317563289,5.12536894,151.33,151.29,11.73517046]
[1749317565190,8.00993755,151.33,151.29,8.00993755]
[1749317566296,14.61810268,151.33,151.29,8.00993755]
[1749317566599,8.00993755,151.33,151.29,8.00993755]
[1749317566796,14.61807972,151.33,151.28,95.31025912]
[1749317566979,14.61807972,151.33,151.29,8.00993755]
[1749317567572,8.00993755,151.33,151.29,8.00993755]
[1749317570308,14.61784108,151.34,151.29,8.00993755]
[1749317570803,14.61784108,151.34,151.29,14.61969356]
[1749317570991,8.00993755,151.36,151.32,8.00993755]
[1749317571183,26.65958641,151.36,151.32,8.00993755]
[1749317571586,8.00993755,151.36,151.32,8.00993755]
[1749317573003,14.61696094,151.36,151.32,8.00993755]
[1749317573902,8.00993755,151.34,151.3,14.61896685]
[1749317574079,8.00993755,151.34,151.29,88.7]
[1749317574080,8.00993755,151.34,151.29,96.70993755]
[1749317574283,8.00993755,151.33,151.29,88.7]
[1749317574481,8.00993755,151.33,151.29,103.31973411]
[1749317574682,8.00993755,151.33,151.29,96.70993755]
[1749317574904,8.00993755,151.33,151.29,8.00993755]
[1749317577309,8.00993755,151.33,151.29,14.61970427]
[1749317579684,14.61801723,151.33,151.29,14.61970427]
[1749317579914,14.61801723,151.33,151.29,8.00993755]
[1749317580698,8.00993755,151.31,151.27,18.65635155]
[1749317581727,8.00993755,151.31,151.27,25.26703254]
[1749317582433,14.61852325,151.32,151.28,8.00993755]
[1749317583330,8.00993755,151.32,151.28,8.00993755]
[1749317585541,8.00993755,151.32,151.28,14.62012979]
[1749317585835,8.00993755,151.34,151.29,8.00993755]
[1749317586129,8.00993755,151.34,151.3,8.00993755]
[1749317586542,8.00993755,151.34,151.29,8.00993755]
[1749317587124,8.00993755,151.34,151.29,14.61956742]
[1749317587548,14.61776031,151.34,151.29,14.61956742]
[1749317588253,8.00993755,151.33,151.28,95.31011243]
[1749317588422,8.00993755,151.33,151.29,8.00993755]
[1749317589346,8.00993755,151.33,151.29,14.61967217]